bitfinex/quotes_SOLUSD_20241229
["timestamp","ask_amount","ask_price","bid_price","bid_amount"]
[1735430748064,82.428,195.33,195.17,20.0]
[1735430748065,1.628,195.33,195.17,20.0]
[1735430748390,1.628,195.33,195.16,43.776884]
[1735430749073,20.0,195.29,195.16,43.776884]
[1735430749249,23.776884,195.3,195.16,43.776884]
[1735430749690,20.0,195.29,195.18,20.0]
[1735430749854,23.776884,195.28,195.18,20.0]
[1735430750055,20.0,195.29,195.18,20.0]
[1735430750377,20.0,195.29,195.17,20.0]
[1735430751066,20.0,195.29,195.16,20.0]
[1735430751266,20.0,195.29,195.17,20.0]
[1735430759191,20.0,195.26,195.12,7.7402]
[1735430759492,23.776884,195.28,195.12,8.5086576]
[1735430759681,20.0,195.29,195.15,20.0]
[1735430759987,20.0,195.31,195.15,20.0]
[1735430760793,20.0,195.27,195.15,20.0]
[1735430768768,19.825659,195.27,195.15,20.0]
[1735430770201,19.825659,195.27,195.13,23.776884]
[1735430773176,19.825659,195.27,195.12,7.7402]
[1735430773177,1.5726,195.26,195.12,7.7402]
[1735430773390,20.0,195.23,195.12,7.7402]
[1735430773681,26.14686813,195.22,195.12,7.7402]
[1735430774091,26.14686813,195.22,195.12,6.1164]
[1735430774978,3.85645936,195.25,195.16,20.0]
[1735430775181,3.85645936,195.25,195.16,23.776884]
[1735430775800,20.0,195.29,195.16,23.776884]
[1735430777218,20.0,195.29,195.15,1.5668]
[1735430777375,20.0,195.25,195.15,1.5668]
[1735430777904,20.0,195.25,195.12,6.1164]
[1735430778197,20.0,195.21,195.06,6.6001]
[1735430778892,20.0,195.21,195.09,20.0]
[1735430779079,20.0,195.21,195.06,6.6001]
[1735430779608,20.0,195.21,195.09,20.0]
[1735430780600,20.0,195.21,195.1,20.0]
[1735430781001,20.0,195.22,195.11,23.776884]
[1735430781505,1.5301,195.24,195.11,23.776884]
[1735430784504,1.5301,195.24,195.09,20.0]
[1735430784705,20.0,195.2,195.09,20.0]
[1735430785606,23.776884,195.23,195.09,20.0]
[1735430786499,1.5301,195.24,195.1,43.776884]
[1735430787609,1.5301,195.24,195.11,8.1144]
[1735430791189,23.776884,195.23,195.11,8.1144]
[1735430792613,1.5301,195.24,195.12,23.776884]
[1735430793812,21.55139656,195.29,195.15,20.0]
[1735430793998,11.50332312,195.29,195.16,23.776884]
[1735430794202,9.88482312,195.29,195.18,1.5968]
[1735430794507,3.85812371,195.3,195.18,1.5968]
[1735430794888,8.00880147,195.31,195.18,1.5968]
[1735430795088,20.0,195.3,195.18,1.5968]
[1735430796732,23.776884,195.25,195.17,6.0461]
[1735430797016,23.776884,195.25,195.13,1.5968]
[1735430797318,20.0,195.22,195.13,1.5968]
[1735430798512,20.0,195.22,195.12,6.0461]
[1735430802225,20.0,195.18,195.08,7.6429]
[1735430809518,20.548274,195.23,195.09,23.776884]
[1735430809702,3.9394859,195.25,195.09,23.776884]
[1735430809896,3.9394859,195.25,195.12,20.0]
[1735430810226,20.0,195.23,195.12,20.0]
[1735430810427,3.9394859,195.25,195.12,20.0]
[1735430811729,20.0,195.23,195.12,20.0]
[1735430812213,20.0,195.23,195.13,23.776884]
[1735430813826,23.9394859,195.25,195.14,5.153]
[1735430814029,20.0,195.25,195.14,5.153]
[1735430814218,20.0,195.26,195.14,5.153]
[1735430814523,5.53137344,195.29,195.15,23.776884]
[1735430815027,20.0,195.26,195.16,1.5836]
[1735430816113,23.9394859,195.26,195.16,1.5836]
[1735430816315,23.9394859,195.26,195.14,5.153]
[1735430816316,0.74637575,195.25,195.14,5.153]
[1735430816515,4.68586165,195.25,195.14,5.153]
[1735430816716,10.21723509,195.25,195.14,5.153]
[1735430818728,20.0,195.21,195.14,5.153]
[1735430818927,20.0,195.21,195.11,1.5836]
[1735430823931,23.776884,195.2,195.08,6.653]
[1735430824539,20.0,195.17,195.08,6.653]
[1735430825133,20.0,195.16,195.02,6.3756]
[1735430825848,20.0,195.16,195.03,23.776884]
[1735430826147,20.0,195.16,195.02,6.3756]
[1735430828845,20.0,195.12,195.02,6.3756]
[1735430832164,3.85939846,195.18,195.06,20.0]
[1735430832449,32.59406594,195.23,195.08,7.9808]
[1735430832651,20.0,195.19,195.08,7.9808]
[1735430833145,14.03341325,195.24,195.08,7.9808]
[1735430833146,21.5101,195.21,195.08,6.4808]
[1735430834952,1.5101,195.21,195.08,6.4808]
[1735430835464,23.776884,195.2,195.08,6.4808]
[1735430836250,20.0,195.17,195.08,6.4808]
[1735430836626,20.0,195.17,195.08,4.8756]
[1735430836827,20.0,195.17,195.04,6.3756]
[1735430839254,23.776884,195.16,195.04,6.3756]
[1735430839450,20.0,195.13,195.04,6.3756]
[1735430848933,5.53009035,195.17,195.04,6.3756]
[1735430849136,9.39049387,195.19,195.04,6.3756]
[1735430849354,23.776884,195.18,195.04,6.3756]
[1735430849643,20.0,195.17,195.04,6.3756]
[1735430850051,20.0,195.17,195.05,23.776884]
[1735430850446,20.0,195.19,195.05,23.776884]
[1735430850956,20.0,195.19,195.04,6.3756]
[1735430851143,23.776884,195.18,195.04,6.3756]
[1735430851540,20.0,195.15,195.04,6.3756]
[1735430853153,23.776884,195.14,195.04,6.3756]
[1735430853352,20.0,195.11,195.04,6.3756]
[1735430853964,20.0,195.11,195.03,1.6052]
[1735430855269,23.776884,195.1,195.0,6.596]
[1735430855465,3.85968116,195.17,195.04,1.5006]
[1735430855671,3.85968116,195.17,195.05,23.776884]
[1735430855970,8.00880147,195.19,195.06,7.36475118]
[1735430856568,3.85819317,195.24,195.07,23.776884]
[1735430856951,20.0,195.22,195.09,23.776884]
[1735430857475,23.776884,195.24,195.07,23.776884]
[1735430857662,25.48511557,195.24,195.07,23.776884]
[1735430857860,20.0,195.21,195.07,23.776884]
[1735430859059,20.0,195.21,195.06,7.36467465]
[1735430859258,20.0,195.21,195.06,6.596]
[1735430859876,23.776884,195.2,195.06,6.596]
[1735430860066,20.0,195.17,195.06,6.596]
[1735430861369,21.5213,195.17,195.06,6.596]
[1735430861558,20.0,195.13,195.04,1.5006]
[1735430864464,1.5213,195.17,195.04,22.26945897]
[1735430864965,20.0,195.16,195.04,22.26945897]
[1735430865555,21.5213,195.17,195.04,22.26945897]
[1735430866078,21.5213,195.17,195.05,20.0]
[1735430866673,21.5213,195.17,195.04,22.26945897]
[1735430866869,21.5213,195.17,195.05,23.776884]
[1735430867066,20.0,195.18,195.06,0.76879486]
[1735430867450,13.53889182,195.22,195.09,23.776884]
[1735430867671,13.53889182,195.22,195.1,1.5224]
[1735430867875,13.53889182,195.22,195.11,23.776884]
[1735430868085,8.00880147,195.22,195.11,23.776884]
[1735430868372,8.00880147,195.22,195.15,6.4425]
[1735430868674,3.85819317,195.24,195.15,6.4425]
[1735430868879,5.53009035,195.27,195.15,6.4425]
[1735430870474,1.5649,195.28,195.15,6.4425]
[1735430871785,20.0,195.27,195.15,6.4425]
[1735430872986,21.5649,195.28,195.15,6.4425]
[1735430873185,21.5649,195.28,195.16,23.776884]
[1735430873373,20.0,195.28,195.17,1.5634]
[1735430873558,20.0,195.31,195.17,1.5634]
[1735430873964,20.0,195.31,195.18,24.5451599]
[1735430874586,23.776884,195.33,195.18,24.5451599]
[1735430874975,20.0,195.3,195.18,24.5451599]
[1735430875682,1.5768,195.34,195.21,23.776884]
[1735430875887,3.85663785,195.35,195.24,1.5634]
[1735430876065,3.85663785,195.35,195.24,2.33142697]
[1735430876266,20.0,195.35,195.24,2.33142697]
[1735430877001,8.00880147,195.39,195.24,2.33142697]
[1735430877002,20.0,195.36,195.24,2.33142697]
[1735430877606,43.776884,195.4,195.24,2.33142697]
[1735430877890,43.776884,195.4,195.24,1.5634]
[1735430878891,49.73249383,195.4,195.24,1.5634]
[1735430879192,23.776884,195.35,195.24,1.5634]
[1735430879488,23.776884,195.35,195.22,6.4425]
[1735430879489,29.73249383,195.35,195.22,6.4425]
[1735430879695,23.776884,195.33,195.22,6.4425]
[1735430880192,23.776884,195.33,195.19,1.5634]
[1735430880193,20.0,195.29,195.19,1.5634]
[1735430880804,3.0546161,195.29,195.19,1.5634]
[1735430881101,5.95560983,195.29,195.19,1.5634]
[1735430882190,23.776884,195.28,195.19,1.5634]
[1735430882389,23.776884,195.28,195.17,6.4425]
[1735430882692,20.0,195.25,195.14,1.5634]
[1735430883083,43.776884,195.26,195.14,1.5634]
[1735430884995,23.776884,195.24,195.14,1.5634]
[1735430885676,23.776884,195.24,195.12,6.4425]
[1735430887272,20.0,195.24,195.12,6.4425]
[1735430887697,23.776884,195.23,195.12,6.4425]
[1735430889176,43.776884,195.24,195.12,6.4425]
[1735430889376,23.776884,195.23,195.12,6.4425]
[1735430890102,1.5102,195.25,195.13,23.776884]
[1735430890302,1.5102,195.3,195.13,23.776884]
[1735430890482,23.776884,195.29,195.13,23.776884]
[1735430890672,23.776884,195.29,195.16,20.0]
[1735430892470,23.776884,195.29,195.12,6.4425]
[1735430892673,20.0,195.22,195.12,6.4425]
[1735430892997,20.0,195.18,195.02,0.768603]
[1735430893194,23.776884,195.17,195.01,7.8765]
[1735430893497,23.776884,195.17,195.05,20.0]
[1735430893697,23.776884,195.17,195.02,23.776884]
[1735430894001,23.776884,195.17,195.05,20.0]
[1735430894182,20.0,195.18,195.06,23.776884]
[1735430894380,1.5102,195.21,195.06,24.5457457]
[1735430894582,1.5102,195.21,195.09,20.0]
[1735430895390,23.776884,195.2,195.09,20.0]
[1735430897295,1.5102,195.21,195.09,20.0]
[1735430897681,6.2221,195.08,194.93,14.29611355]
[1735430897878,23.776884,195.06,194.93,14.29611355]
[1735430898084,0.76872144,195.05,194.93,14.29611355]
[1735430898485,0.76872144,195.05,194.93,6.3547]
[1735430898999,23.776884,195.04,194.93,6.3547]
[1735430899305,20.76872144,195.03,194.93,6.3547]
[1735430899804,0.76872144,195.03,194.93,6.3547]
[1735430900201,0.76872144,195.04,194.94,23.776884]
[1735430900600,0.76872144,195.07,194.94,23.776884]
[1735430901494,0.76872144,195.08,194.94,23.776884]
[1735430901896,0.76872144,195.08,194.94,21.776884]
[1735430902101,23.776884,195.07,194.93,6.3547]
[1735430902306,0.76872144,195.06,194.93,6.3547]
[1735430903180,0.76872144,195.07,194.93,6.3547]
[1735430904208,0.76872144,195.07,194.94,23.776884]
[1735430908513,0.76872144,195.07,194.97,20.0]
[1735430908812,0.76872144,195.08,194.97,20.0]
[1735430909217,24.54560544,195.1,194.97,20.0]
[1735430911012,24.54560544,195.1,194.91,1.5218]
[1735430911013,20.0,195.03,194.92,0.76913792]
[1735430911203,23.776884,195.01,194.85,7.9508]
[1735430911399,23.776884,194.99,194.85,7.9508]
[1735430911703,0.76872144,194.98,194.88,20.0]
[1735430911901,0.76872144,195.01,194.88,20.0]
[1735430912308,23.776884,195.0,194.88,20.0]
[1735430912503,0.76872144,194.99,194.88,20.0]
[1735430916010,0.76872144,195.0,194.88,20.0]
[1735430918207,20.0,194.96,194.78,8.137]
[1735430918401,23.776884,194.94,194.78,8.137]
[1735430918601,0.76872144,194.93,194.81,20.0]
[1735430919501,24.54560544,194.95,194.81,20.0]
[1735430920311,0.76872144,195.04,194.86,43.776884]
[1735430920512,0.76872144,195.04,194.86,44.54633563]
[1735430920700,20.573482,195.02,194.86,44.54633563]
[1735430920899,0.76872144,195.01,194.86,44.54633563]
[1735430921309,45.11273844,195.1,194.86,44.54633563]
[1735430921512,51.42354686,195.1,194.86,44.54633563]
[1735430921918,45.11273844,195.1,194.86,44.54633563]
[1735430922120,20.0,195.01,194.86,44.54633563]
[1735430922319,0.76872144,195.0,194.86,43.776884]
[1735430922510,24.54560544,195.05,194.86,43.776884]
[1735430923006,23.776884,195.0,194.82,8.137]
[1735430923226,20.0,194.97,194.82,8.137]
[1735430923525,0.76872144,194.96,194.83,23.776884]
[1735430924323,0.76872144,194.96,194.86,20.0]
[1735430924930,20.0,194.92,194.82,6.4983]
[1735430925236,0.76872144,194.91,194.82,6.4983]
[1735430925434,20.0,195.0,194.82,6.4983]
[1735430925602,20.0,194.95,194.82,6.4983]
[1735430925801,0.76872144,194.94,194.82,6.4983]
[1735430929705,0.76872144,194.94,194.85,20.0]
[1735430929918,0.76872144,194.97,194.85,20.0]
[1735430930115,20.0,195.0,194.85,20.0]
[1735430930314,23.776884,194.98,194.85,20.0]
[1735430930513,0.76872144,194.97,194.85,20.0]
[1735430930811,23.776884,194.96,194.82,6.4983]
[1735430931022,0.76872144,194.95,194.82,6.4983]
[1735430931329,23.776884,194.94,194.82,6.4983]
[1735430931629,0.76872144,194.93,194.82,6.4983]
[1735430932108,23.776884,194.92,194.82,6.4983]
[1735430932306,0.76872144,194.91,194.82,6.4983]
[1735430937921,0.76872144,194.98,194.82,6.4983]
[1735430938313,0.76872144,194.98,194.85,20.0]
[1735430938614,23.776884,194.97,194.86,1.6306]
[1735430938807,23.776884,194.95,194.86,1.6306]
[1735430939036,0.76872144,194.94,194.86,1.6306]
[1735430940335,0.76872144,194.98,194.86,1.6306]
[1735430940657,0.76872144,195.02,194.91,6.336]
[1735430940855,23.776884,195.01,194.91,6.336]
[1735430941035,0.76872144,195.0,194.91,6.336]
[1735430941648,7.26468947,195.09,194.91,6.336]
[1735430941649,0.76872144,195.03,194.91,6.336]
[1735430942450,23.776884,195.02,194.91,6.336]
[1735430942647,0.76872144,195.01,194.91,6.336]
[1735430942840,0.76872144,195.03,194.94,20.0]
[1735430943066,1.5551,195.08,194.94,20.0]
[1735430943067,0.76872144,195.07,194.95,1.6306]
[1735430943444,23.776884,195.11,194.95,1.6306]
[1735430943642,23.776884,195.09,194.95,1.6306]
[1735430943843,0.76872144,195.08,194.95,1.6306]
[1735430945159,0.76872144,195.08,194.95,21.6306]
[1735430946263,0.76872144,195.08,195.0,6.5676]
[1735430946570,0.76872144,195.1,195.0,6.5676]
[1735430947349,0.76872144,195.12,195.03,20.0]
[1735430947555,0.76872144,195.15,195.04,1.5281]
[1735430947760,23.776884,195.14,195.04,1.5281]
[1735430947959,0.76872144,195.13,195.04,1.5281]
[1735430948851,23.776884,195.12,195.04,1.5281]
[1735430949052,0.76872144,195.11,195.04,1.5281]
[1735430949245,24.54560544,195.15,195.04,1.5281]
[1735430949848,0.76872144,195.15,195.04,1.5281]
[1735430950054,0.76872144,195.15,195.04,21.5281]
[1735430950254,0.76872144,195.17,195.04,21.5281]
[1735430950457,0.76872144,195.17,195.05,23.776884]
[1735430950787,0.76872144,195.17,195.08,20.0]
[1735430951069,20.0,195.19,195.08,20.0]
[1735430951250,0.76872144,195.18,195.08,20.0]
[1735430952278,0.76872144,195.18,195.09,6.5676]
[1735430952462,24.54560544,195.21,195.09,6.5676]
[1735430953987,7.26468947,195.2,195.12,20.0]
[1735430954281,0.76872144,195.19,195.12,20.0]
[1735430954572,8.03341091,195.2,195.12,20.0]
[1735430954767,1.5792,195.23,195.12,20.0]
[1735430954976,23.776884,195.22,195.12,20.0]
[1735430955161,0.76872144,195.21,195.12,20.0]
[1735430955848,0.76872144,195.23,195.13,1.5281]
[1735430956053,6.1004,195.28,195.13,1.5281]
[1735430956054,0.76872144,195.27,195.13,21.5281]
[1735430956272,0.76872144,195.27,195.14,20.0]
[1735430956478,20.76872144,195.27,195.16,6.5676]
[1735430957078,0.76872144,195.27,195.16,6.5676]
[1735430957274,0.76872144,195.28,195.16,6.5676]
[1735430957657,0.76872144,195.28,195.19,20.0]
[1735430957954,6.1004,195.33,195.19,20.0]
[1735430957955,0.76872144,195.32,195.19,20.0]
[1735430958746,23.776884,195.31,195.19,20.0]
[1735430959053,0.76872144,195.3,195.19,20.0]
[1735430959277,0.76872144,195.3,195.2,20.0]
[1735430959453,0.76872144,195.33,195.2,20.0]
[1735430959855,0.76872144,195.33,195.21,20.0]
[1735430960055,0.76872144,195.33,195.22,21.6214]
[1735430960579,0.76872144,195.34,195.22,21.6214]
[1735430960954,0.76872144,195.37,195.22,21.6214]
[1735430961984,0.76872144,195.37,195.26,20.0]
[1735430962663,0.76872144,195.37,195.24,0.76798681]
[1735430962664,0.76872144,195.39,195.27,20.0]
[1735430962851,1.5763,195.43,195.28,20.0]
[1735430962852,0.76872144,195.42,195.28,20.0]
[1735430964978,0.76872144,195.42,195.27,39.61436538]
[1735430965165,0.76872144,195.44,195.32,20.0]
[1735430965571,0.76872144,195.44,195.33,6.4616]
[1735430966880,24.54560544,195.45,195.33,6.4616]
[1735430967358,0.76872144,195.45,195.33,6.4616]
[1735430967581,0.76872144,195.47,195.33,6.4616]
[1735430967780,20.76872144,195.47,195.33,6.4616]
[1735430969683,0.76872144,195.47,195.36,20.0]
[1735430970193,24.54560544,195.49,195.36,20.0]
[1735430979789,20.0,195.46,195.33,6.4616]
[1735430979963,24.54560544,195.45,195.33,6.4616]
[1735430982571,0.76872144,195.45,195.36,20.0]
[1735430982884,1.44991039,195.49,195.37,1.6185]
[1735430982885,0.76872144,195.48,195.37,1.6185]
[1735430983897,23.776884,195.47,195.37,1.6185]
[1735430984100,0.76872144,195.46,195.37,1.6185]
[1735430989698,0.76872144,195.49,195.37,1.6185]
[1735430989916,0.76872144,195.49,195.37,21.6185]
[1735430992501,0.76872144,195.49,195.37,1.6185]
[1735430993999,23.776884,195.48,195.37,1.6185]
[1735430994184,23.776884,195.46,195.37,1.6185]
[1735430994379,0.76872144,195.45,195.37,1.6185]
[1735430994582,23.776884,195.44,195.36,20.0]
[1735430994879,0.76872144,195.43,195.33,6.4616]
[1735430995089,23.776884,195.42,195.33,6.4616]
[1735430995296,0.76872144,195.41,195.33,6.4616]
[1735430995496,23.776884,195.44,195.33,6.4616]
[1735430995705,23.776884,195.42,195.32,1.6608]
[1735430995901,23.776884,195.4,195.32,1.6608]
[1735430996075,0.76872144,195.39,195.32,1.6608]
[1735430997801,0.76872144,195.39,195.28,6.2274]
[1735430997802,23.776884,195.38,195.28,6.2274]
[1735430997993,23.776884,195.36,195.27,1.6608]
[1735430998198,0.76872144,195.35,195.27,1.6608]
[1735430998499,23.776884,195.34,195.23,6.2274]
[1735430998691,0.76872144,195.33,195.23,6.2274]
[1735431000506,23.776884,195.32,195.23,6.2274]
[1735431000688,0.76872144,195.31,195.22,1.6608]
[1735431000896,23.776884,195.3,195.22,1.6608]
[1735431001090,0.76872144,195.29,195.19,6.2274]
[1735431001605,23.776884,195.28,195.19,6.2274]
[1735431001907,0.76872144,195.27,195.19,6.2274]
[1735431002509,0.76872144,195.31,195.19,6.2274]
[1735431002688,23.776884,195.3,195.19,6.2274]
[1735431003006,23.776884,195.28,195.19,6.2274]
[1735431003193,0.76872144,195.27,195.19,6.2274]
[1735431003387,23.776884,195.3,195.19,6.2274]
[1735431003589,23.776884,195.28,195.19,6.2274]
[1735431003795,0.76872144,195.27,195.19,6.2274]
[1735431006526,0.76872144,195.31,195.19,6.2274]
[1735431006828,23.776884,195.3,195.19,6.2274]
[1735431007003,0.76872144,195.29,195.19,6.2274]
[1735431007808,23.776884,195.28,195.19,6.2274]
[1735431008008,0.76872144,195.27,195.19,6.2274]
[1735431010012,23.776884,195.26,195.19,6.2274]
[1735431010195,0.76872144,195.25,195.19,6.2274]
[1735431010394,23.776884,195.29,195.19,6.2274]
[1735431010606,23.776884,195.27,195.19,6.2274]
[1735431010812,23.776884,195.25,195.17,1.6608]
[1735431011011,0.76872144,195.24,195.17,1.6608]
[1735431011413,20.0,195.27,195.17,1.6608]
[1735431011591,23.776884,195.25,195.17,1.6608]
[1735431011794,23.776884,195.23,195.14,6.4774]
[1735431011994,23.776884,195.21,195.14,6.4774]
[1735431012220,0.76872144,195.2,195.14,6.4774]
[1735431012622,0.76872144,195.2,195.12,21.5754]
[1735431013818,23.776884,195.19,195.12,21.5754]
[1735431014020,0.76872144,195.18,195.12,21.5754]
[1735431015220,0.76872144,195.18,195.09,6.4774]
[1735431015400,23.776884,195.17,195.09,6.4774]
[1735431015606,0.76872144,195.16,195.09,6.4774]
[1735431017442,23.776884,195.15,195.09,6.4774]
[1735431017642,0.76872144,195.14,195.09,6.4774]
[1735431018314,20.0,195.21,195.09,6.4774]
[1735431018532,0.76872144,195.2,195.09,6.4774]
[1735431021713,23.776884,195.19,195.09,6.4774]
[1735431021914,0.76872144,195.18,195.09,6.4774]
[1735431025141,23.776884,195.17,195.09,6.4774]
[1735431025316,23.776884,195.15,195.07,1.5754]
[1735431025515,0.76872144,195.14,195.07,1.5754]
[1735431027037,0.76872144,195.14,195.04,6.5587]
[1735431027038,23.776884,195.13,195.04,6.5587]
[1735431027241,0.76872144,195.12,195.04,6.5587]
[1735431029126,0.76872144,195.17,195.04,6.5587]
[1735431029336,0.76872144,195.17,195.07,20.0]
[1735431030237,0.76872144,195.18,195.07,20.0]
[1735431030817,0.76872144,195.18,195.08,20.76865466]
[1735431031141,0.76872144,195.22,195.11,6.5587]
[1735431031439,0.76872144,195.23,195.14,20.0]
[1735431031648,0.76872144,195.27,195.14,20.0]
[1735431031858,20.0,195.26,195.14,20.0]
[1735431032032,23.776884,195.24,195.11,6.5587]
[1735431032227,23.776884,195.22,195.11,6.5587]
[1735431032546,23.776884,195.2,195.11,6.5587]
[1735431032839,23.776884,195.18,195.11,6.5587]
[1735431033044,0.76872144,195.17,195.11,6.5587]
[1735431033537,0.76872144,195.17,195.1,1.6457]
[1735431034535,20.0,195.2,195.1,1.6457]
[1735431034737,23.776884,195.18,195.1,1.6457]
[1735431034945,23.776884,195.16,195.07,6.5587]
[1735431035139,0.76872144,195.15,195.07,6.5587]
[1735431036148,23.776884,195.14,195.07,6.5587]
[1735431036322,0.76872144,195.13,195.07,6.5587]
[1735431036522,20.0,195.2,195.05,1.6013]
[1735431036523,20.0,195.16,195.05,1.6013]
[1735431036724,23.776884,195.14,195.05,1.6013]
[1735431036926,23.776884,195.12,195.05,1.6013]
[1735431037137,0.76872144,195.11,195.05,1.6013]
[1735431037545,0.76872144,195.15,195.05,1.6013]
[1735431038544,23.776884,195.14,195.05,21.6013]
[1735431038740,0.76872144,195.18,195.05,21.6013]
[1735431039655,23.776884,195.17,195.06,20.0]
[1735431039831,0.76872144,195.16,195.06,20.0]
[1735431041552,3.34733275,195.22,195.07,20.0]
[1735431041736,2.39542144,195.21,195.11,20.0]
[1735431042765,0.76872144,195.21,195.11,20.0]
[1735431042966,0.76872144,195.23,195.11,20.0]
[1735431043745,0.76872144,195.25,195.13,21.6013]
[1735431043965,0.76872144,195.25,195.14,0.76843843]
[1735431044163,2.39542144,195.32,195.15,6.2536]
[1735431044469,23.776884,195.29,195.15,6.2536]
[1735431044681,23.776884,195.27,195.15,6.2536]
[1735431044883,0.76872144,195.26,195.15,6.2536]
[1735431045175,0.76872144,195.26,195.18,20.0]
[1735431045349,0.76872144,195.31,195.18,20.0]
[1735431045952,23.776884,195.3,195.18,20.0]
[1735431046261,0.76872144,195.29,195.18,20.0]
[1735431047045,0.76872144,195.31,195.19,21.6013]
[1735431047347,0.76872144,195.31,195.2,20.0]
[1735431047542,0.76872144,195.34,195.2,20.0]
[1735431048373,23.776884,195.33,195.19,21.6013]
[1735431048566,0.76872144,195.32,195.19,21.6013]
[1735431051158,0.76872144,195.32,195.2,26.95284932]
[1735431051364,0.76872144,195.34,195.24,20.0]
[1735431051784,0.76872144,195.35,195.24,20.0]
[1735431052077,0.76872144,195.35,195.24,20.76800126]
[1735431052780,0.76872144,195.35,195.25,20.0]
[1735431052955,24.54560544,195.39,195.25,20.0]
[1735431053573,0.76872144,195.39,195.3,20.0]
[1735431054074,0.76872144,195.4,195.3,20.0]
[1735431054751,0.76872144,195.42,195.3,20.76774351]
[1735431055154,24.54560544,195.45,195.3,20.76774351]
[1735431055567,0.76872144,195.45,195.31,23.776884]
[1735431055769,0.76872144,195.48,195.31,23.776884]
[1735431055965,23.776884,195.46,195.34,20.0]
[1735431056282,0.76872144,195.45,195.34,20.0]
[1735431056481,0.76872144,195.45,195.32,0.76765375]
[1735431056692,0.76872144,195.45,195.3,20.0]
[1735431058192,20.76872144,195.45,195.3,20.0]
[1735431058372,23.776884,195.44,195.3,20.0]
[1735431058562,23.776884,195.42,195.3,20.0]
[1735431058887,23.776884,195.4,195.3,20.0]
[1735431059257,0.76872144,195.39,195.3,20.0]
[1735431059771,20.0,195.45,195.3,20.0]
[1735431059970,0.76872144,195.44,195.3,20.0]
[1735431060174,23.776884,195.43,195.3,20.0]
[1735431060485,0.76872144,195.42,195.3,20.0]
[1735431061374,0.76872144,195.43,195.3,20.0]
[1735431062384,43.776884,195.41,195.3,20.0]
[1735431062583,0.76872144,195.4,195.3,20.0]
[1735431062773,2.36392144,195.47,195.3,20.0]
[1735431063284,20.0,195.45,195.3,20.0]
[1735431063472,24.54560544,195.44,195.3,20.0]
[1735431065889,0.76872144,195.44,195.31,20.0]
[1735431066079,0.76872144,195.46,195.33,20.0]
[1735431066277,0.76872144,195.46,195.34,0.76757877]
[1735431066474,23.776884,195.44,195.31,1.5642]
[1735431066679,23.776884,195.42,195.27,7.5717]
[1735431066878,23.776884,195.4,195.3,20.0]
[1735431067196,0.76872144,195.41,195.3,20.76792128]
[1735431067369,0.76872144,195.44,195.3,20.76792128]
[1735431067568,23.776884,195.43,195.3,20.76792128]
[1735431067795,0.76872144,195.42,195.3,20.76792128]
[1735431068182,0.76872144,195.42,195.31,20.0]
[1735431068479,0.76872144,195.44,195.31,20.0]
[1735431070097,0.76872144,195.44,195.3,20.0]
[1735431070391,0.76872144,195.44,195.31,20.0]
[1735431070599,0.76872144,195.44,195.32,20.0]
[1735431070897,0.76872144,195.44,195.33,1.5642]
[1735431071195,0.76872144,195.45,195.33,1.5642]
[1735431071898,23.776884,195.44,195.35,20.0]
[1735431072093,0.76872144,195.43,195.35,20.0]
[1735431072276,0.76872144,195.43,195.33,1.5642]
[1735431072693,23.776884,195.41,195.32,6.0075]
[1735431072878,23.776884,195.39,195.28,1.5642]
[1735431073083,0.76872144,195.38,195.3,20.0]
[1735431073385,1.5127,195.42,195.3,20.0]
[1735431073386,24.54560544,195.41,195.3,20.0]